[Event "Early-Titled-Tuesday-Blitz-January-16-2024"]
[Site "Chess.com"]
[Date "2024.01.16"]
[Round "5"]
[White "chess_blitz00"]
[Black "Bekkedahl"]
[Result "1/2-1/2"]
[WhiteElo "2475"]
[BlackElo "2296"]
[TimeControl "180+1"]
[EndTime "9:01:15 PST"]
[Termination "Game drawn by repetition"]

1. d4 {[%clk 0:03:00.9]} 1... Nf6 {[%clk 0:02:59.6]} 2. Nf3 {[%clk 0:03:00.3]}
2... g6 {[%clk 0:02:59.7]} 3. b3 {[%clk 0:02:59.7]} 3... Bg7 {[%clk 0:03:00.4]}
4. Bb2 {[%clk 0:03:00.3]} 4... O-O {[%clk 0:03:01.1]} 5. Nbd2 {[%clk 0:03:00.9]}
5... d6 {[%clk 0:03:00.6]} 6. e4 {[%clk 0:03:00.9]} 6... e5 {[%clk 0:02:54.4]}
7. dxe5 {[%clk 0:02:59.6]} 7... dxe5 {[%clk 0:02:54.6]} 8. Bxe5 {[%clk
0:02:57.1]} 8... Re8 {[%clk 0:02:54.2]} 9. Bxf6 {[%clk 0:02:46.4]} 9... Bxf6
{[%clk 0:02:51.8]} 10. Rb1 {[%clk 0:02:47]} 10... Bc3 {[%clk 0:02:44]} 11. Bd3
{[%clk 0:02:47.3]} 11... Nc6 {[%clk 0:02:37.5]} 12. O-O {[%clk 0:02:46.8]} 12...
Bg4 {[%clk 0:02:37.7]} 13. h3 {[%clk 0:02:40.9]} 13... Bxd2 {[%clk 0:02:29.9]}
14. hxg4 {[%clk 0:02:33.8]} 14... Bc3 {[%clk 0:02:29.2]} 15. Bc4 {[%clk
0:02:29.5]} 15... Rxe4 {[%clk 0:02:22.2]} 16. Qxd8+ {[%clk 0:02:08.4]} 16...
Rxd8 {[%clk 0:02:23.1]} 17. Bxf7+ {[%clk 0:02:06]} 17... Kg7 {[%clk 0:02:19.6]}
18. Bc4 {[%clk 0:02:04.3]} 18... Rxg4 {[%clk 0:02:11.9]} 19. Rfd1 {[%clk
0:01:59.5]} 19... Nd4 {[%clk 0:02:02.4]} 20. Nxd4 {[%clk 0:01:50.8]} 20... Rgxd4
{[%clk 0:02:01]} 21. Rxd4 {[%clk 0:01:47.5]} 21... Bxd4 {[%clk 0:01:53.5]} 22.
Re1 {[%clk 0:01:39.6]} 22... Bc5 {[%clk 0:01:38.7]} 23. Bd3 {[%clk 0:01:27.3]}
23... Rd7 {[%clk 0:01:31.4]} 24. Kf1 {[%clk 0:01:17.1]} 24... Rf7 {[%clk
0:01:16.4]} 25. f3 {[%clk 0:01:16.7]} 25... Kf6 {[%clk 0:01:14.4]} 26. Re4
{[%clk 0:01:13.4]} 26... Re7 {[%clk 0:01:08.2]} 27. Rf4+ {[%clk 0:01:13.2]}
27... Ke5 {[%clk 0:01:00.5]} 28. Rf8 {[%clk 0:00:55.4]} 28... Kd4 {[%clk
0:01:00.6]} 29. Rd8+ {[%clk 0:00:47.6]} 29... Kc3 {[%clk 0:00:58.4]} 30. Be4
{[%clk 0:00:43.1]} 30... b6 {[%clk 0:00:46.5]} 31. Rd5 {[%clk 0:00:14.6]} 31...
a5 {[%clk 0:00:44.3]} 32. Ke2 {[%clk 0:00:08.2]} 32... g5 {[%clk 0:00:43.8]} 33.
Kd1 {[%clk 0:00:03.6]} 33... h6 {[%clk 0:00:29]} 34. Rd3+ {[%clk 0:00:02.7]}
34... Kb2 {[%clk 0:00:27.9]} 35. c4 {[%clk 0:00:02]} 35... Kxa2 {[%clk
0:00:26.5]} 36. Kc2 {[%clk 0:00:02.4]} 36... Ka3 {[%clk 0:00:13.1]} 37. Rd1
{[%clk 0:00:01.9]} 37... Kb4 {[%clk 0:00:11.3]} 38. Kb2 {[%clk 0:00:02]} 38...
b5 {[%clk 0:00:11.2]} 39. cxb5 {[%clk 0:00:02.1]} 39... Kxb5 {[%clk 0:00:11.5]}
40. Bd3+ {[%clk 0:00:02.6]} 40... Kb6 {[%clk 0:00:11.8]} 41. Be4 {[%clk
0:00:03.1]} 41... Bd6 {[%clk 0:00:09.8]} 42. Kc3 {[%clk 0:00:03.5]} 42... Re5
{[%clk 0:00:10.5]} 43. Kb2 {[%clk 0:00:03.3]} 43... Rc5 {[%clk 0:00:11]} 44. Rh1
{[%clk 0:00:03.1]} 44... Bf8 {[%clk 0:00:10.5]} 45. Kb1 {[%clk 0:00:03.1]} 45...
Rc3 {[%clk 0:00:09.8]} 46. Bc2 {[%clk 0:00:03.2]} 46... Re3 {[%clk 0:00:10.2]}
47. Rd1 {[%clk 0:00:02.8]} 47... Re2 {[%clk 0:00:10.7]} 48. g4 {[%clk 0:00:03]}
48... Bd6 {[%clk 0:00:10.5]} 49. Rd3 {[%clk 0:00:03.1]} 49... Rf2 {[%clk
0:00:10.9]} 50. Kb2 {[%clk 0:00:02.7]} 50... Be5+ {[%clk 0:00:10.8]} 51. Kc1
{[%clk 0:00:03]} 51... Rf1+ {[%clk 0:00:11.4]} 52. Kd2 {[%clk 0:00:03.1]} 52...
Rf2+ {[%clk 0:00:12.1]} 53. Kd1 {[%clk 0:00:03.3]} 53... Kc6 {[%clk 0:00:12.5]}
54. Re3 {[%clk 0:00:03.2]} 54... Kd6 {[%clk 0:00:12.1]} 55. Be4 {[%clk
0:00:03.4]} 55... c5 {[%clk 0:00:12]} 56. Rd3+ {[%clk 0:00:03.8]} 56... Bd4
{[%clk 0:00:12.6]} 57. Rd2 {[%clk 0:00:03.5]} 57... Ke5 {[%clk 0:00:12.1]} 58.
Rc2 {[%clk 0:00:02.6]} 58... Rxc2 {[%clk 0:00:10]} 59. Kxc2 {[%clk 0:00:02.8]}
59... Kf4 {[%clk 0:00:09.5]} 60. Kd3 {[%clk 0:00:03.2]} 60... Ke5 {[%clk
0:00:10.2]} 61. Kc4 {[%clk 0:00:03.2]} 61... Kd6 {[%clk 0:00:10.6]} 62. Kb5
{[%clk 0:00:03.4]} 62... Bc3 {[%clk 0:00:11.4]} 63. Kc4 {[%clk 0:00:02.2]} 63...
Bb4 {[%clk 0:00:12.3]} 64. Kb5 {[%clk 0:00:02.8]} 64... Ke5 {[%clk 0:00:12.7]}
65. Kc4 {[%clk 0:00:03.3]} 65... Kf4 {[%clk 0:00:12.9]} 66. Bc6 {[%clk
0:00:03.4]} 66... Kg3 {[%clk 0:00:13.6]} 67. Kd3 {[%clk 0:00:02.6]} 67... Kh4
{[%clk 0:00:13.5]} 68. Ke4 {[%clk 0:00:03]} 68... Kg3 {[%clk 0:00:14.3]} 69. Kf5
{[%clk 0:00:03.1]} 69... Kf2 {[%clk 0:00:11.2]} 70. Kg6 {[%clk 0:00:02.8]} 70...
Ke3 {[%clk 0:00:12]} 71. Kxh6 {[%clk 0:00:02.8]} 71... Kf4 {[%clk 0:00:12.8]}
72. Kg6 {[%clk 0:00:03.5]} 72... Bc3 {[%clk 0:00:13.6]} 73. Kf7 {[%clk
0:00:03.6]} 73... Bd4 {[%clk 0:00:14.3]} 74. Ke6 {[%clk 0:00:04.1]} 74... Be3
{[%clk 0:00:15.2]} 75. Kd6 {[%clk 0:00:04.1]} 75... Bd4 {[%clk 0:00:15.3]} 76.
Be4 {[%clk 0:00:04.4]} 76... Be3 {[%clk 0:00:15]} 77. Kc6 {[%clk 0:00:04.7]}
77... Bd4 {[%clk 0:00:15.5]} 78. Kb5 {[%clk 0:00:04.8]} 78... Bc3 {[%clk
0:00:15.5]} 79. Kxc5 {[%clk 0:00:05]} 79... Bb4+ {[%clk 0:00:16.2]} 80. Kb5
{[%clk 0:00:05.6]} 80... Be1 {[%clk 0:00:16.5]} 81. Kc4 {[%clk 0:00:06.3]} 81...
Bd2 {[%clk 0:00:17.1]} 82. Kd3 {[%clk 0:00:06.4]} 82... Be1 {[%clk 0:00:17.9]}
83. Bd5 {[%clk 0:00:05.5]} 83... Bb4 {[%clk 0:00:18.8]} 84. Ke2 {[%clk
0:00:05.3]} 84... Bc3 {[%clk 0:00:19.1]} 85. Kd1 {[%clk 0:00:05.3]} 85... Bb4
{[%clk 0:00:20]} 86. Kc2 {[%clk 0:00:05.8]} 86... Be1 {[%clk 0:00:20.5]} 87. Kd3
{[%clk 0:00:05.2]} 87... Bb4 {[%clk 0:00:21.4]} 88. Kc4 {[%clk 0:00:05.9]} 88...
Be1 {[%clk 0:00:21.9]} 89. Kb5 {[%clk 0:00:06.5]} 89... Bb4 {[%clk 0:00:22.8]}
90. Ka4 {[%clk 0:00:06.9]} 90... Be1 {[%clk 0:00:23.4]} 91. Be4 {[%clk
0:00:06.6]} 91... Bb4 {[%clk 0:00:24.3]} 92. Bc6 {[%clk 0:00:07.2]} 92... Be1
{[%clk 0:00:25]} 93. Bb7 {[%clk 0:00:08.1]} 93... Bb4 {[%clk 0:00:25.4]} 94. Ba8
{[%clk 0:00:09]} 94... Be1 {[%clk 0:00:26]} 95. Ka3 {[%clk 0:00:09.9]} 95...
Bb4+ {[%clk 0:00:26.3]} 96. Kb2 {[%clk 0:00:10.8]} 96... Be1 {[%clk 0:00:26.7]}
97. Kc2 {[%clk 0:00:11.7]} 97... Bb4 {[%clk 0:00:27.2]} 98. Kc1 {[%clk
0:00:12.6]} 98... Be1 {[%clk 0:00:27.7]} 99. Kd1 {[%clk 0:00:13.5]} 99... Bb4
{[%clk 0:00:28.2]} 100. Ke2 {[%clk 0:00:14.4]} 100... Bc3 {[%clk 0:00:28.7]}
101. Kf1 {[%clk 0:00:15.3]} 101... Bb4 {[%clk 0:00:29.4]} 102. Kf2 {[%clk
0:00:16.1]} 102... Bc3 {[%clk 0:00:29.3]} 103. Bb7 {[%clk 0:00:17]} 103... Bb4
{[%clk 0:00:29.2]} 104. Ke2 {[%clk 0:00:17.6]} 104... Bc3 {[%clk 0:00:28.9]}
105. Kd3 {[%clk 0:00:18.5]} 105... Bb4 {[%clk 0:00:29.1]} 106. Kc4 {[%clk
0:00:19.3]} 106... Ke3 {[%clk 0:00:28]} 107. Kd5 {[%clk 0:00:16.5]} 107... Be1
{[%clk 0:00:28.3]} 108. Ke5 {[%clk 0:00:14.8]} 108... Bd2 {[%clk 0:00:25.4]}
109. Kf5 {[%clk 0:00:14.1]} 109... Kd4 {[%clk 0:00:26]} 110. Bc6 {[%clk
0:00:13.1]} 110... Kc5 {[%clk 0:00:24.9]} 111. Be8 {[%clk 0:00:11.6]} 111... Kb4
{[%clk 0:00:24.3]} 112. Ba4 {[%clk 0:00:12.1]} 112... Bf4 {[%clk 0:00:24.1]}
113. Ke4 {[%clk 0:00:11.4]} 113... Bd2 {[%clk 0:00:24.8]} 114. Kd3 {[%clk
0:00:11.6]} 114... Bf4 {[%clk 0:00:25.7]} 115. Kd4 {[%clk 0:00:12.2]} 115... Bc1
{[%clk 0:00:26.2]} 116. Kd3 {[%clk 0:00:11.3]} 116... Bf4 {[%clk 0:00:26.7]}
117. Kc2 {[%clk 0:00:11.7]} 117... Be3 {[%clk 0:00:26.9]} 118. Kd1 {[%clk
0:00:11.9]} 118... Bf4 {[%clk 0:00:27.8]} 119. Ke2 {[%clk 0:00:12.3]} 119... Bc1
{[%clk 0:00:28.5]} 120. Kd3 {[%clk 0:00:12.8]} 120... Bf4 {[%clk 0:00:29.4]}
1/2-1/2

[Event "Early-Titled-Tuesday-Blitz-January-16-2024"]
[Site "Chess.com"]
[Date "2024.01.16"]
[Round "5"]
[White "GMSrinath"]
[Black "GHANDEEVAM2003"]
[Result "1/2-1/2"]
[WhiteElo "2835"]
[BlackElo "3003"]
[TimeControl "180+1"]
[EndTime "9:03:04 PST"]
[Termination "Game drawn by 50-move rule"]

1. Nf3 {[%clk 0:02:31.2]} 1... d6 {[%clk 0:02:57.8]} 2. d4 {[%clk 0:02:30.6]}
2... g6 {[%clk 0:02:57.8]} 3. g3 {[%clk 0:02:29.8]} 3... Bg7 {[%clk 0:02:58.1]}
4. Bg2 {[%clk 0:02:30.4]} 4... Nc6 {[%clk 0:02:58.8]} 5. O-O {[%clk 0:02:31]}
5... Bd7 {[%clk 0:02:59.5]} 6. c4 {[%clk 0:02:28]} 6... Qc8 {[%clk 0:02:59.5]}
7. d5 {[%clk 0:02:27.5]} 7... Ne5 {[%clk 0:02:59.1]} 8. Nxe5 {[%clk 0:02:27.9]}
8... Bxe5 {[%clk 0:03:00]} 9. f4 {[%clk 0:02:28.2]} 9... Bg7 {[%clk 0:02:59.2]}
10. Nc3 {[%clk 0:02:28.8]} 10... h5 {[%clk 0:02:55.6]} 11. e4 {[%clk 0:02:26.6]}
11... h4 {[%clk 0:02:47]} 12. f5 {[%clk 0:02:26.1]} 12... gxf5 {[%clk
0:02:35.5]} 13. Qf3 {[%clk 0:02:25.7]} 13... Be5 {[%clk 0:02:22.1]} 14. Bf4
{[%clk 0:02:16.8]} 14... hxg3 {[%clk 0:02:11.5]} 15. Bxe5 {[%clk 0:02:01.4]}
15... gxh2+ {[%clk 0:02:09]} 16. Bxh2 {[%clk 0:02:02.3]} 16... c6 {[%clk
0:02:02.4]} 17. e5 {[%clk 0:01:58.6]} 17... cxd5 {[%clk 0:01:59.3]} 18. Nxd5
{[%clk 0:01:59.5]} 18... e6 {[%clk 0:01:52.7]} 19. Ne3 {[%clk 0:01:32.6]} 19...
Bc6 {[%clk 0:01:47.2]} 20. Qg3 {[%clk 0:01:28.8]} 20... Bxg2 {[%clk 0:01:24.4]}
21. Nxg2 {[%clk 0:01:29.7]} 21... Ne7 {[%clk 0:01:14.1]} 22. exd6 {[%clk
0:01:23.2]} 22... Rg8 {[%clk 0:01:11.9]} 23. Qe3 {[%clk 0:01:15.9]} 23... Qc6
{[%clk 0:00:59]} 24. Qf3 {[%clk 0:01:12.8]} 24... Qxf3 {[%clk 0:00:51.7]} 25.
Rxf3 {[%clk 0:01:13.7]} 25... Nc6 {[%clk 0:00:52.6]} 26. Kf2 {[%clk 0:01:05.9]}
26... Kd7 {[%clk 0:00:50.9]} 27. Ne3 {[%clk 0:01:04.7]} 27... Rh8 {[%clk
0:00:49]} 28. Bg3 {[%clk 0:00:56.4]} 28... Nd4 {[%clk 0:00:48.9]} 29. Rf4 {[%clk
0:00:46]} 29... e5 {[%clk 0:00:49.3]} 30. Rxd4 {[%clk 0:00:41.9]} 30... exd4
{[%clk 0:00:50.2]} 31. Nxf5 {[%clk 0:00:42.8]} 31... Rac8 {[%clk 0:00:50.5]} 32.
b3 {[%clk 0:00:40.2]} 32... b5 {[%clk 0:00:50.7]} 33. Rc1 {[%clk 0:00:35.9]}
33... d3 {[%clk 0:00:44.3]} 34. Bf4 {[%clk 0:00:25.7]} 34... bxc4 {[%clk
0:00:39.1]} 35. bxc4 {[%clk 0:00:26.6]} 35... Rh5 {[%clk 0:00:37.4]} 36. Ne3
{[%clk 0:00:20.7]} 36... Ra5 {[%clk 0:00:32.6]} 37. Rd1 {[%clk 0:00:18]} 37...
Rxa2+ {[%clk 0:00:32.3]} 38. Kf3 {[%clk 0:00:18.7]} 38... Ra3 {[%clk 0:00:29.8]}
39. Ke4 {[%clk 0:00:18.4]} 39... f5+ {[%clk 0:00:21.1]} 40. Kd4 {[%clk
0:00:17.7]} 40... Re8 {[%clk 0:00:21.8]} 41. Nxf5 {[%clk 0:00:12.9]} 41... Rf8
{[%clk 0:00:22.5]} 42. Ke4 {[%clk 0:00:13.2]} 42... Re8+ {[%clk 0:00:21.9]} 43.
Ne7 {[%clk 0:00:13.8]} 43... Rf8 {[%clk 0:00:15.8]} 44. Be5 {[%clk 0:00:10.4]}
44... Rf2 {[%clk 0:00:14.9]} 45. c5 {[%clk 0:00:07.4]} 45... Rc2 {[%clk
0:00:10.4]} 46. c6+ {[%clk 0:00:06]} 46... Ke6 {[%clk 0:00:11.1]} 47. c7 {[%clk
0:00:05.3]} 47... Rc4+ {[%clk 0:00:11]} 48. Bd4 {[%clk 0:00:04.4]} 48... Kxd6
{[%clk 0:00:09.2]} 49. c8=Q {[%clk 0:00:04.8]} 49... Rxc8 {[%clk 0:00:10.1]} 50.
Nxc8+ {[%clk 0:00:05.7]} 50... Kc7 {[%clk 0:00:10.8]} 51. Nxa7 {[%clk
0:00:06.6]} 51... Rb3 {[%clk 0:00:10.8]} 52. Rxd3 {[%clk 0:00:06.7]} 52... Rb1
{[%clk 0:00:11.5]} 53. Rc3+ {[%clk 0:00:06]} 53... Kb7 {[%clk 0:00:12.2]} 54.
Ra3 {[%clk 0:00:06.4]} 54... Rb4 {[%clk 0:00:12]} 55. Kd5 {[%clk 0:00:06.5]}
55... Rb1 {[%clk 0:00:12]} 56. Kc5 {[%clk 0:00:06.6]} 56... Rc1+ {[%clk
0:00:12.1]} 57. Bc3 {[%clk 0:00:06.9]} 57... Rh1 {[%clk 0:00:11.8]} 58. Nb5
{[%clk 0:00:07.5]} 58... Rh5+ {[%clk 0:00:12.5]} 59. Kb4 {[%clk 0:00:08.1]}
59... Kc6 {[%clk 0:00:13.2]} 60. Ra6+ {[%clk 0:00:07.6]} 60... Kd5 {[%clk
0:00:13.6]} 61. Rd6+ {[%clk 0:00:08.2]} 61... Ke4 {[%clk 0:00:14.1]} 62. Rd4+
{[%clk 0:00:08.3]} 62... Kf3 {[%clk 0:00:14.7]} 63. Nd6 {[%clk 0:00:08.8]} 63...
Rh7 {[%clk 0:00:13.3]} 64. Ne4 {[%clk 0:00:06.7]} 64... Rc7 {[%clk 0:00:10.1]}
65. Nc5 {[%clk 0:00:06.1]} 65... Rf7 {[%clk 0:00:09]} 66. Rd3+ {[%clk 0:00:06]}
66... Kg4 {[%clk 0:00:09.1]} 67. Kc4 {[%clk 0:00:05.9]} 67... Rf4+ {[%clk
0:00:09.2]} 68. Bd4 {[%clk 0:00:06]} 68... Rf3 {[%clk 0:00:09.4]} 69. Rd1 {[%clk
0:00:06.6]} 69... Kh3 {[%clk 0:00:09.8]} 70. Rg1 {[%clk 0:00:06.8]} 70... Rg3
{[%clk 0:00:10.1]} 71. Re1 {[%clk 0:00:07.1]} 71... Rf3 {[%clk 0:00:10.2]} 72.
Ne4 {[%clk 0:00:07.5]} 72... Kg2 {[%clk 0:00:10.4]} 73. Re2+ {[%clk 0:00:07.3]}
73... Kf1 {[%clk 0:00:10.5]} 74. Ra2 {[%clk 0:00:07.6]} 74... Ke1 {[%clk
0:00:09.3]} 75. Bc3+ {[%clk 0:00:07.4]} 75... Kd1 {[%clk 0:00:08.9]} 76. Rd2+
{[%clk 0:00:07.8]} 76... Kc1 {[%clk 0:00:08.9]} 77. Rh2 {[%clk 0:00:08.2]} 77...
Kd1 {[%clk 0:00:08.4]} 78. Nf2+ {[%clk 0:00:07]} 78... Ke2 {[%clk 0:00:08.7]}
79. Ng4+ {[%clk 0:00:07.6]} 79... Kf1 {[%clk 0:00:08.3]} 80. Rc2 {[%clk
0:00:07.7]} 80... Rf4+ {[%clk 0:00:08.4]} 81. Bd4 {[%clk 0:00:07.2]} 81... Rxg4
{[%clk 0:00:09.3]} 82. Kd3 {[%clk 0:00:08]} 82... Rg3+ {[%clk 0:00:08.5]} 83.
Be3 {[%clk 0:00:08.6]} 83... Rf3 {[%clk 0:00:09.2]} 84. Ke4 {[%clk 0:00:08.3]}
84... Rh3 {[%clk 0:00:07.1]} 85. Kf4 {[%clk 0:00:08.8]} 85... Ke1 {[%clk
0:00:06.5]} 86. Ra2 {[%clk 0:00:07.9]} 86... Kf1 {[%clk 0:00:06.7]} 87. Ke4
{[%clk 0:00:07.9]} 87... Ke1 {[%clk 0:00:06.7]} 88. Rb2 {[%clk 0:00:07.5]} 88...
Kf1 {[%clk 0:00:07.1]} 89. Bf4 {[%clk 0:00:07.8]} 89... Ke1 {[%clk 0:00:05.8]}
90. Rg2 {[%clk 0:00:08.1]} 90... Kf1 {[%clk 0:00:05.4]} 91. Rg4 {[%clk
0:00:08.1]} 91... Kf2 {[%clk 0:00:05.6]} 92. Be5 {[%clk 0:00:06.7]} 92... Rb3
{[%clk 0:00:05.5]} 93. Bd4+ {[%clk 0:00:06.7]} 93... Ke2 {[%clk 0:00:06]} 94.
Rh4 {[%clk 0:00:06.7]} 94... Rg3 {[%clk 0:00:05.7]} 95. Rh2+ {[%clk 0:00:06.7]}
95... Kf1 {[%clk 0:00:06.3]} 96. Be3 {[%clk 0:00:06.2]} 96... Rg2 {[%clk
0:00:05.4]} 97. Rh8 {[%clk 0:00:04.6]} 97... Ke2 {[%clk 0:00:05.7]} 98. Ra8
{[%clk 0:00:05.5]} 98... Rg4+ {[%clk 0:00:05.9]} 99. Bf4 {[%clk 0:00:06.2]}
99... Rg2 {[%clk 0:00:06.8]} 100. Ra1 {[%clk 0:00:06.1]} 100... Rf2 {[%clk
0:00:06.6]} 101. Rb1 {[%clk 0:00:05.9]} 101... Rg2 {[%clk 0:00:07.1]} 102. Rc1
{[%clk 0:00:05.7]} 102... Rf2 {[%clk 0:00:07.5]} 103. Bg3 {[%clk 0:00:06.3]}
103... Rg2 {[%clk 0:00:07.4]} 104. Kf4 {[%clk 0:00:05.9]} 104... Kd3 {[%clk
0:00:08]} 105. Ra1 {[%clk 0:00:04.7]} 105... Rc2 {[%clk 0:00:08.4]} 106. Kf3
{[%clk 0:00:05]} 106... Kc4 {[%clk 0:00:08.7]} 107. Ra8 {[%clk 0:00:05.3]}
107... Rc3+ {[%clk 0:00:08.9]} 108. Kf4 {[%clk 0:00:05.8]} 108... Rd3 {[%clk
0:00:09.2]} 109. Bf2 {[%clk 0:00:05.4]} 109... Kb5 {[%clk 0:00:09.4]} 110. Ke4
{[%clk 0:00:05.5]} 110... Rd7 {[%clk 0:00:10]} 111. Rb8+ {[%clk 0:00:05.8]}
111... Kc6 {[%clk 0:00:10.1]} 112. Bd4 {[%clk 0:00:06.4]} 112... Rb7 {[%clk
0:00:10.5]} 113. Rh8 {[%clk 0:00:05.8]} 113... Re7+ {[%clk 0:00:10.4]} 114. Kd3
{[%clk 0:00:06.4]} 114... Rd7 {[%clk 0:00:10.5]} 115. Kc4 {[%clk 0:00:07.1]}
115... Rc7 {[%clk 0:00:10.5]} 116. Rh6+ {[%clk 0:00:06.4]} 116... Kb7+ {[%clk
0:00:10.1]} 117. Kb5 {[%clk 0:00:06.5]} 117... Rf7 {[%clk 0:00:10.3]} 118. Bc5
{[%clk 0:00:06.2]} 118... Rd7 {[%clk 0:00:10]} 119. Rf6 {[%clk 0:00:05.8]}
119... Rc7 {[%clk 0:00:09.6]} 120. Rd6 {[%clk 0:00:04.9]} 120... Rh7 {[%clk
0:00:09.5]} 121. Rb6+ {[%clk 0:00:04.6]} 121... Kc8 {[%clk 0:00:10.2]} 122. Ra6
{[%clk 0:00:05.5]} 122... Rb7+ {[%clk 0:00:10.4]} 123. Kc6 {[%clk 0:00:06.1]}
123... Rc7+ {[%clk 0:00:10.8]} 124. Kd5 {[%clk 0:00:06.8]} 124... Kb7 {[%clk
0:00:08.8]} 125. Ra1 {[%clk 0:00:04.5]} 125... Rd7+ {[%clk 0:00:08]} 126. Bd6
{[%clk 0:00:05.1]} 126... Rh7 {[%clk 0:00:08.6]} 127. Rb1+ {[%clk 0:00:05.6]}
127... Ka8 {[%clk 0:00:07.8]} 128. Kc6 {[%clk 0:00:05.2]} 128... Rf7 {[%clk
0:00:06.2]} 129. Rb8+ {[%clk 0:00:05.2]} 129... Ka7 {[%clk 0:00:06.5]} 130. Rc8
{[%clk 0:00:06.1]} 130... Ka6 {[%clk 0:00:04.1]} 131. Be5 {[%clk 0:00:06.7]}
131... Ka5 {[%clk 0:00:03.5]} 1/2-1/2

[Event "Early-Titled-Tuesday-Blitz-January-16-2024"]
[Site "Chess.com"]
[Date "2024.01.16"]
[Round "6"]
[White "Sanyura"]
[Black "Legendinunknown"]
[Result "0-1"]
[WhiteElo "2629"]
[BlackElo "2810"]
[TimeControl "180+1"]
[EndTime "9:05:14 PST"]
[Termination "Legendinunknown won by resignation"]

1. e4 {[%clk 0:03:00.9]} 1... e5 {[%clk 0:02:57.8]} 2. Nf3 {[%clk 0:03:00.9]}
2... Nc6 {[%clk 0:02:58.1]} 3. Bb5 {[%clk 0:03:01.3]} 3... a6 {[%clk 0:02:58.3]}
4. Ba4 {[%clk 0:03:01.2]} 4... d6 {[%clk 0:02:59]} 5. c3 {[%clk 0:03:00.9]} 5...
f5 {[%clk 0:02:58.8]} 6. exf5 {[%clk 0:02:54.3]} 6... Bxf5 {[%clk 0:02:59.7]} 7.
O-O {[%clk 0:02:53.2]} 7... Bd3 {[%clk 0:02:59]} 8. Re1 {[%clk 0:02:45.6]} 8...
Be7 {[%clk 0:02:59.4]} 9. Bc2 {[%clk 0:02:42.2]} 9... Bxc2 {[%clk 0:02:58.7]}
10. Qxc2 {[%clk 0:02:43.1]} 10... Nf6 {[%clk 0:02:59.4]} 11. Ng5 {[%clk
0:02:42.8]} 11... Qd7 {[%clk 0:02:55.2]} 12. Qb3 {[%clk 0:02:41.6]} 12... d5
{[%clk 0:02:44.4]} 13. Qxb7 {[%clk 0:02:36.4]} 13... O-O {[%clk 0:02:43]} 14.
Qb3 {[%clk 0:02:35]} 14... Bc5 {[%clk 0:02:38]} 15. d4 {[%clk 0:02:29.2]} 15...
exd4 {[%clk 0:02:37.7]} 16. Ne6 {[%clk 0:02:28.6]} 16... Rae8 {[%clk 0:02:34.6]}
0-1

[Event "Early-Titled-Tuesday-Blitz-January-16-2024"]
[Site "Chess.com"]
[Date "2024.01.16"]
[Round "6"]
[White "MusicCityMaster"]
[Black "JesseFebruary"]
[Result "1-0"]
[WhiteElo "2419"]
[BlackElo "1905"]
[TimeControl "180+1"]
[EndTime "9:05:23 PST"]
[Termination "MusicCityMaster won by resignation"]

1. e4 {[%clk 0:03:00.9]} 1... e6 {[%clk 0:02:59]} 2. d4 {[%clk 0:03:00.1]} 2...
d5 {[%clk 0:02:59.4]} 3. Nc3 {[%clk 0:03:00.2]} 3... Nf6 {[%clk 0:02:58.6]} 4.
e5 {[%clk 0:03:00.3]} 4... Nfd7 {[%clk 0:02:58.9]} 5. Nce2 {[%clk 0:03:01.1]}
5... c5 {[%clk 0:02:58.2]} 6. c3 {[%clk 0:03:01.6]} 6... Nc6 {[%clk 0:02:58.3]}
7. Nf3 {[%clk 0:03:02.2]} 7... Qb6 {[%clk 0:02:57.3]} 8. a3 {[%clk 0:03:01.7]}
8... c4 {[%clk 0:02:57.1]} 9. Nf4 {[%clk 0:03:00]} 9... Na5 {[%clk 0:02:56.1]}
10. h4 {[%clk 0:02:56.6]} 10... Nb3 {[%clk 0:02:55.8]} 11. Rb1 {[%clk
0:02:56.7]} 11... a5 {[%clk 0:02:33.3]} 12. Ng5 {[%clk 0:02:54.2]} 12... Nxc1
{[%clk 0:02:25.5]} 13. Qxc1 {[%clk 0:02:39.9]} 13... Qb3 {[%clk 0:02:24.9]} 14.
Be2 {[%clk 0:02:37.1]} 14... b5 {[%clk 0:02:16.6]} 15. Bd1 {[%clk 0:02:37]}
15... Qa2 {[%clk 0:02:14.9]} 16. Ra1 {[%clk 0:02:36.5]} 1-0

[Event "Early-Titled-Tuesday-Blitz-January-16-2024"]
[Site "Chess.com"]
[Date "2024.01.16"]
[Round "6"]
[White "reniite"]
[Black "Journey_to_GrandMaster_YT"]
[Result "0-1"]
[WhiteElo "2347"]
[BlackElo "2516"]
[TimeControl "180+1"]
[EndTime "9:05:41 PST"]
[Termination "Journey_to_GrandMaster_YT won by resignation"]

1. e4 {[%clk 0:02:57.3]} 1... d6 {[%clk 0:03:00.9]} 2. d4 {[%clk 0:02:56.9]}
2... Nf6 {[%clk 0:03:01.8]} 3. Nc3 {[%clk 0:02:57]} 3... e5 {[%clk 0:03:02.7]}
4. dxe5 {[%clk 0:02:55.3]} 4... dxe5 {[%clk 0:03:03.6]} 5. Qxd8+ {[%clk
0:02:55.8]} 5... Kxd8 {[%clk 0:03:04.5]} 6. Bg5 {[%clk 0:02:56.2]} 6... c6
{[%clk 0:03:04.8]} 7. O-O-O+ {[%clk 0:02:56.1]} 7... Nd7 {[%clk 0:03:05.3]} 8.
h3 {[%clk 0:02:55.2]} 8... b5 {[%clk 0:02:58.9]} 9. a3 {[%clk 0:02:53.2]} 9...
a5 {[%clk 0:02:56.4]} 10. Kb1 {[%clk 0:02:52]} 10... b4 {[%clk 0:02:54.4]} 11.
axb4 {[%clk 0:02:52.9]} 11... axb4 {[%clk 0:02:54.7]} 12. Na2 {[%clk 0:02:48.8]}
12... Kc7 {[%clk 0:02:53.9]} 13. b3 {[%clk 0:02:22.8]} 13... Nxe4 {[%clk
0:02:52.4]} 14. Be3 {[%clk 0:02:14.8]} 14... Bc5 {[%clk 0:02:48.4]} 15. Bxc5
{[%clk 0:02:13.7]} 15... Ndxc5 {[%clk 0:02:48]} 16. Rh2 {[%clk 0:02:01.9]} 16...
Rxa2 {[%clk 0:02:44.1]} 17. Kxa2 {[%clk 0:01:57.7]} 17... Nc3+ {[%clk
0:02:43.7]} 18. Kb2 {[%clk 0:01:57.1]} 18... Nxd1+ {[%clk 0:02:43.2]} 19. Kc1
{[%clk 0:01:58]} 19... Nxf2 {[%clk 0:02:40.9]} 20. Bc4 {[%clk 0:01:58.9]} 20...
Be6 {[%clk 0:02:39.9]} 0-1